bitfinex/quotes_SOLUSD_20240816
["timestamp","ask_amount","ask_price","bid_price","bid_amount"]
[1723776548955,38.74948,143.2,143.09,20.0]
[1723776548956,0.12549,143.17,143.09,20.0]
[1723776550050,0.12549,143.17,143.12,20.0]
[1723776550616,0.12549,143.17,143.1,52.66]
[1723776550835,31.5149,143.2,143.12,20.0]
[1723776551050,31.5149,143.2,143.14,20.0]
[1723776551230,31.5149,143.2,143.15,0.12549]
[1723776551565,31.5149,143.2,143.13,20.12549]
[1723776551728,31.5149,143.2,143.12,32.66]
[1723776551729,33.2611496,143.2,143.12,32.66]
[1723776551937,33.2611496,143.2,143.11,0.12549]
[1723776552152,0.12549,143.19,143.11,20.25098]
[1723776552333,1.997477,143.19,143.11,0.25098]
[1723776552531,8.981277,143.19,143.11,0.25098]
[1723776552757,8.981277,143.19,143.08,32.66]
[1723776553053,0.25098,143.19,143.09,40.0]
[1723776553260,0.12549,143.17,143.08,32.66]
[1723776553556,0.25098,143.17,143.09,20.0]
[1723776553723,1.99757138,143.17,143.09,20.0]
[1723776553926,0.12549,143.17,143.09,20.0]
[1723776554156,13.1774,143.15,143.1,0.12549]
[1723776554459,0.25098,143.14,143.09,0.12549]
[1723776554690,0.25098,143.14,143.09,0.25098]
[1723776554956,0.12549,143.14,143.11,20.0]
[1723776555140,0.12549,143.14,143.09,20.25098]
[1723776555345,0.12549,143.14,143.09,0.25098]
[1723776555655,0.12549,143.14,143.09,45.25098]
[1723776556356,0.12549,143.14,143.09,65.25098]
[1723776556956,32.3002,143.13,143.09,0.25098]
[1723776557527,32.3002,143.13,143.1,20.0]
[1723776557930,32.3002,143.13,143.09,0.25098]
[1723776558129,32.3002,143.13,143.08,0.25098]
[1723776559585,1.99795489,143.12,143.02,40.0]
[1723776559791,8.98515489,143.12,143.02,40.0]
[1723776560080,0.12549,143.1,143.02,66.29]
[1723776560280,0.25098,143.1,143.02,66.29]
[1723776560490,0.25098,143.1,143.06,20.0]
[1723776560663,0.25098,143.1,143.04,46.29]
[1723776561283,45.3178,143.13,143.11,20.0]
[1723776561456,45.3178,143.13,143.12,20.0]
[1723776562398,44.4605,143.21,143.16,20.0]
[1723776563293,44.4605,143.21,143.16,46.29]
[1723776563467,44.4605,143.21,143.18,20.0]
[1723776563656,44.4605,143.21,143.16,26.29]
[1723776563856,44.4605,143.21,143.17,0.25098]
[1723776564057,44.4605,143.21,143.17,0.12549]
[1723776564359,44.4605,143.21,143.17,0.25098]
[1723776564791,44.4605,143.21,143.16,0.25098]
[1723776564964,44.4605,143.21,143.15,45.25098]
[1723776565169,44.4605,143.21,143.18,20.0]
[1723776565681,44.4605,143.21,143.16,20.0]
[1723776565883,0.12549,143.2,143.15,0.12549]
[1723776566105,0.12549,143.2,143.16,20.0]
[1723776566468,0.25098,143.2,143.16,20.0]
[1723776566683,0.25098,143.2,143.14,0.25098]
[1723776566865,0.25098,143.2,143.16,20.0]
[1723776567279,0.12549,143.2,143.16,20.0]
[1723776568166,0.25098,143.2,143.14,78.06098]
[1723776568358,0.25098,143.2,143.14,33.06098]
[1723776568781,0.25098,143.2,143.16,20.0]
[1723776568960,0.25098,143.2,143.15,20.0]
[1723776569161,0.25098,143.2,143.14,0.25098]
[1723776569379,0.25098,143.2,143.13,0.25098]
[1723776569565,1.99729466,143.2,143.13,0.25098]
[1723776569775,0.25098,143.2,143.13,20.0]
[1723776570077,0.25098,143.2,143.14,0.25098]
[1723776570681,0.25098,143.2,143.13,0.25098]
[1723776570877,0.25098,143.2,143.13,20.25098]
[1723776571275,0.25098,143.2,143.13,0.25098]
[1723776572293,0.12549,143.2,143.17,20.0]
[1723776572598,44.4605,143.21,143.19,20.0]
[1723776573391,44.4605,143.21,143.17,20.0]
[1723776573610,44.4605,143.21,143.15,20.0]
[1723776573918,0.12549,143.2,143.16,0.12549]
[1723776574083,1.87157704,143.2,143.13,0.12549]
[1723776574283,1.87157932,143.2,143.13,0.12549]
[1723776574500,0.12549,143.19,143.13,0.12549]
[1723776575120,0.25098,143.2,143.13,0.12549]
[1723776575407,0.25098,143.2,143.13,20.12549]
[1723776575614,0.25098,143.2,143.14,0.12549]
[1723776575821,1.99728479,143.2,143.14,0.12549]
[1723776576115,1.99728479,143.2,143.15,20.0]
[1723776576116,0.25098,143.2,143.15,20.0]
[1723776576501,0.25098,143.2,143.13,0.25098]
[1723776576705,0.25098,143.2,143.08,32.81]
[1723776576706,0.12549,143.16,143.08,32.81]
[1723776576895,0.25098,143.16,143.08,32.81]
[1723776577094,0.25098,143.16,143.1,20.0]
[1723776577417,0.25098,143.16,143.07,20.0]
[1723776578101,0.25098,143.16,143.08,45.25098]
[1723776578410,0.25098,143.16,143.08,98.06098]
[1723776578618,0.25098,143.16,143.11,20.0]
[1723776579318,0.25098,143.16,143.08,78.06098]
[1723776579319,0.12549,143.16,143.12,0.25098]
[1723776579487,0.12549,143.16,143.12,0.12549]
[1723776579692,0.12549,143.16,143.12,0.25098]
[1723776580113,0.12549,143.16,143.13,20.0]
[1723776580317,0.12549,143.16,143.12,0.25098]
[1723776580700,0.12549,143.16,143.13,20.0]
[1723776581220,0.12549,143.16,143.12,0.25098]
[1723776581718,0.25098,143.16,143.12,0.12549]
[1723776582398,0.25098,143.16,143.08,52.81]
[1723776582593,0.25098,143.16,143.05,20.0]
[1723776582594,6.9861,143.15,143.05,20.0]
[1723776582801,1.99815963,143.14,143.05,20.0]
[1723776583491,0.12549,143.12,143.02,69.81048258]
[1723776583698,1.99837019,143.12,143.05,20.0]
[1723776583894,1.99837019,143.12,143.04,20.0]
[1723776583895,0.25098,143.12,143.04,20.0]
[1723776584514,0.25098,143.12,143.02,52.81]
[1723776584694,7.23828,143.12,143.02,52.81]
[1723776585620,12.764,143.09,143.0,32.81]
[1723776585826,32.4038,143.06,143.0,32.81]
[1723776586033,32.4038,143.06,143.01,20.0]
[1723776586527,32.4038,143.06,142.99,20.0]
[1723776586692,1.99874855,143.05,142.99,20.0]
[1723776587202,1.99874855,143.05,143.01,20.0]
[1723776587394,1.99874855,143.05,142.98,52.81]
[1723776587993,1.99874855,143.05,142.99,20.0]
[1723776588197,1.99874855,143.05,142.96,52.81]
[1723776588198,0.12549,143.03,142.96,52.81]
[1723776588422,0.12549,143.03,142.96,32.81]
[1723776588634,12.764,143.02,142.96,32.81]
[1723776589314,1.99920243,143.01,142.95,20.0]
[1723776589518,0.25098,143.01,142.98,20.0]
[1723776589832,12.764,143.02,142.94,52.81]
[1723776590035,0.12549,143.01,142.95,20.0]
[1723776590333,0.25098,143.01,142.95,20.0]
[1723776590520,0.25098,143.01,142.94,52.81]
[1723776590715,0.25098,143.01,142.95,20.0]
[1723776592119,0.25098,143.01,142.96,0.12549]
[1723776592320,1.99951032,143.01,142.96,0.12549]
[1723776592738,32.4038,143.0,142.95,20.0]
[1723776593040,0.25098,142.99,142.94,20.0]
[1723776594142,0.25098,142.99,142.93,20.8577618]
[1723776594310,0.25098,142.99,142.93,0.8577618]
[1723776595541,0.25098,142.99,142.95,20.0]
[1723776595914,0.25098,142.99,142.95,46.32]
[1723776597051,32.4038,143.0,142.97,20.0]
[1723776597724,32.4038,143.0,142.96,0.12549]
[1723776598054,12.764,143.02,142.96,0.12549]
[1723776598055,12.764,143.02,142.99,20.0]
[1723776598349,12.764,143.02,142.97,26.32]
[1723776598561,12.764,143.02,142.98,0.25098]
[1723776599235,12.764,143.02,142.98,20.25098]
[1723776599409,0.12549,143.01,142.98,0.12549]
[1723776599609,0.12549,143.01,142.97,20.0]
[1723776599815,12.764,143.02,142.97,20.0]
[1723776600009,0.12549,143.01,142.97,20.0]
[1723776600215,12.764,143.02,142.98,0.25098]
[1723776600843,12.764,143.02,142.99,20.0]
[1723776601346,12.764,143.02,142.98,20.25098]
[1723776601641,12.3337,143.06,143.01,20.0]
[1723776601830,12.3337,143.06,143.03,26.32]
[1723776602143,12.3337,143.06,143.02,0.12549]
[1723776602350,12.3337,143.06,143.02,0.25098]
[1723776603626,12.3337,143.06,143.02,20.25098]
[1723776603823,45.2604,143.12,143.03,91.32]
[1723776604041,52.2475,143.12,143.04,20.25098]
[1723776604254,45.2604,143.12,143.04,20.12549]
[1723776604434,45.2604,143.12,143.04,0.12549]
[1723776604845,45.2604,143.12,143.04,0.25098]
[1723776605962,45.2604,143.12,143.05,46.32]
[1723776606127,45.2604,143.12,143.08,20.0]
[1723776606327,44.9799,143.16,143.09,26.32]
[1723776606541,44.9799,143.16,143.1,0.12549]
[1723776607272,44.9799,143.16,143.09,0.12549]
[1723776607273,1.74662698,143.15,143.09,0.12549]
[1723776607563,44.9799,143.16,143.1,20.0]
[1723776607935,44.9799,143.16,143.11,20.25098]
[1723776608150,44.9799,143.16,143.09,20.12549]
[1723776608351,44.9799,143.16,143.1,0.12549]
[1723776608746,44.9799,143.16,143.11,26.32]
[1723776608935,44.9799,143.16,143.12,0.25098]
[1723776609365,1.7466601,143.15,143.07,20.0]
[1723776609537,44.9799,143.16,143.08,85.25098]
[1723776609870,44.9799,143.16,143.11,20.0]
[1723776610033,0.25098,143.15,143.11,20.0]
[1723776610455,0.12549,143.15,143.11,20.0]
[1723776610681,44.9799,143.16,143.13,20.0]
[1723776611371,44.9799,143.16,143.12,0.12549]
[1723776611577,44.9799,143.16,143.11,0.12549]
[1723776612571,1.99758482,143.15,143.11,0.12549]
[1723776613453,0.12549,143.13,143.08,20.0]
[1723776613660,1.99790397,143.13,143.04,26.32]
[1723776614048,0.12549,143.12,143.04,20.0]
[1723776614389,0.25098,143.12,143.05,20.0]
[1723776614544,0.25098,143.12,143.03,20.0]
[1723776614749,0.25098,143.13,143.03,20.0]
[1723776615053,0.12549,143.13,143.04,40.0]
[1723776615360,0.25098,143.14,143.07,20.0]
[1723776615889,1.87256758,143.14,143.08,0.25098]
[1723776616058,0.12549,143.15,143.09,20.0]
[1723776616257,0.12549,143.15,143.1,0.12549]
[1723776616447,0.12549,143.15,143.11,20.0]
[1723776617289,0.25098,143.15,143.11,20.0]
[1723776617488,0.12549,143.15,143.11,20.0]
[1723776617787,44.9799,143.16,143.12,0.50743858]
[1723776618152,44.9799,143.16,143.12,0.12549]
[1723776618346,44.9799,143.16,143.11,20.0]
[1723776619076,0.25098,143.15,143.11,20.0]
[1723776620398,0.12549,143.15,143.11,20.0]
[1723776620579,44.9799,143.16,143.12,0.12549]
[1723776621872,44.9799,143.16,143.12,20.12549]
[1723776622768,44.9799,143.16,143.13,0.12549]
[1723776622967,44.9799,143.16,143.14,20.0]
[1723776625303,44.1888,143.21,143.14,20.0]
[1723776625511,44.1888,143.21,143.13,20.0]
[1723776625512,44.1888,143.21,143.16,20.0]
[1723776625807,44.1888,143.21,143.14,20.0]
[1723776625987,44.1888,143.21,143.15,0.12549]
[1723776626197,44.1888,143.21,143.15,0.25098]
[1723776626716,0.25098,143.2,143.15,0.25098]
[1723776628586,44.1888,143.21,143.15,20.25098]
[1723776628786,44.1888,143.21,143.16,45.0]
[1723776628986,44.1888,143.21,143.18,20.0]
[1723776629221,12.7522,143.21,143.19,0.25098]
[1723776629393,12.7522,143.21,143.19,20.25098]
[1723776630524,12.7522,143.21,143.19,0.12549]
[1723776630723,12.7522,143.21,143.16,45.0]
[1723776631019,12.7522,143.21,143.17,0.25098]
[1723776631191,0.25098,143.2,143.12,26.32]
[1723776631398,0.25098,143.2,143.08,39.085]
[1723776631399,0.12549,143.18,143.09,40.0]
[1723776631724,0.25098,143.18,143.09,40.0]
[1723776632025,0.12549,143.16,143.04,66.32]
[1723776632322,0.12549,143.14,143.04,20.0]
[1723776632488,1.87264963,143.14,143.04,20.0]
[1723776632688,0.12549,143.13,143.07,20.0]
[1723776633645,0.12549,143.13,143.03,20.0]
[1723776633839,0.12549,143.13,143.04,20.0]
[1723776634039,0.12549,143.13,143.05,20.0]
[1723776634217,0.25098,143.14,143.05,20.0]
[1723776634631,0.25098,143.14,143.06,0.12549]
[1723776634837,0.25098,143.14,143.06,0.25098]
[1723776635319,0.25098,143.14,143.08,20.0]
[1723776635919,32.4998,143.15,143.06,85.25098]
[1723776636135,32.4998,143.15,143.06,65.25098]
[1723776637316,0.25098,143.14,143.06,65.25098]
[1723776637530,0.25098,143.14,143.06,85.25098]
[1723776637742,0.25098,143.14,143.09,20.0]
[1723776638220,0.25098,143.14,143.07,20.0]
[1723776638418,0.25098,143.14,143.09,20.0]
[1723776639743,32.4998,143.15,143.1,0.12549]
[1723776639930,32.4998,143.15,143.11,20.0]
[1723776640135,32.4998,143.15,143.12,0.12549]
[1723776640344,32.4998,143.15,143.12,0.25098]
[1723776640645,12.4302,143.17,143.12,0.25098]
[1723776641352,12.4302,143.17,143.11,65.25098]
[1723776641548,12.4302,143.17,143.12,20.0]
[1723776641727,12.4302,143.17,143.14,20.0]
[1723776642127,12.4302,143.17,143.15,0.25098]
[1723776642326,12.4302,143.17,143.13,0.12549]
[1723776642537,12.4302,143.17,143.13,20.12549]
[1723776642741,12.4302,143.17,143.14,0.12549]
[1723776644825,0.12549,143.16,143.1,40.0]
[1723776645024,0.25098,143.16,143.11,0.25098]
[1723776645620,1.99746605,143.16,143.06,20.0]
[1723776646141,0.25098,143.16,143.11,20.0]
[1723776648353,0.25098,143.16,143.08,20.0]
[1723776648662,0.25098,143.16,143.1,20.0]
[1723776649931,12.4302,143.17,143.1,20.0]
[1723776650140,12.4302,143.17,143.11,0.25098]
[1723776650728,12.4302,143.17,143.13,20.0]
[1723776651170,12.4302,143.17,143.14,20.0]
[1723776651350,12.4302,143.17,143.11,0.25098]
[1723776651553,12.4302,143.17,143.11,20.0]
[1723776651858,12.4302,143.17,143.12,0.25098]
[1723776652245,0.12549,143.16,143.12,0.12549]
[1723776652441,0.25098,143.16,143.11,0.25098]
[1723776653939,0.25098,143.16,143.11,0.12549]
[1723776654268,0.25098,143.16,143.08,20.0]
[1723776654463,0.25098,143.16,143.09,0.25098]
[1723776655366,0.25098,143.16,143.1,20.0]
[1723776655748,0.25098,143.16,143.09,45.25098]
[1723776656374,0.25098,143.16,143.1,20.0]
[1723776658246,12.4302,143.17,143.14,20.0]
[1723776658955,12.4302,143.17,143.11,65.25098]
[1723776659151,12.4302,143.17,143.13,20.0]
[1723776659477,12.4302,143.17,143.14,0.12549]
[1723776659895,12.4302,143.17,143.14,20.12549]
[1723776660258,12.4302,143.17,143.12,20.0]
[1723776660462,12.4302,143.17,143.11,45.12549]
[1723776660463,12.4302,143.17,143.13,20.12549]
[1723776660760,12.4302,143.17,143.13,0.12549]
[1723776661071,12.4302,143.17,143.13,20.0]
[1723776661548,12.4302,143.17,143.15,20.0]
[1723776661742,12.4302,143.17,143.16,20.12549]
[1723776661973,12.4302,143.17,143.16,20.0]
[1723776662147,12.4302,143.17,143.16,20.12549]
[1723776662567,12.4302,143.17,143.16,0.12549]
[1723776662891,12.4302,143.17,143.15,0.12549]
[1723776663052,12.4302,143.17,143.15,0.25098]
[1723776663456,12.4302,143.17,143.14,0.25098]
[1723776665698,31.4403,143.18,143.16,20.0]
[1723776666670,12.477,143.2,143.18,20.0]
[1723776667306,31.8743,143.22,143.18,20.0]
[1723776668202,31.8743,143.22,143.17,20.12549]
[1723776668371,31.8743,143.22,143.18,0.12549]
[1723776668708,31.8743,143.22,143.19,20.0]
[1723776669269,31.8743,143.22,143.2,0.12549]
[1723776670198,1.9965368,143.21,143.11,20.0]
[1723776670409,0.25098,143.21,143.11,20.0]
[1723776670709,0.12549,143.19,143.13,20.0]
[1723776671088,0.12549,143.2,143.15,20.0]
[1723776671382,0.12549,143.2,143.14,20.0]
[1723776671814,0.12549,143.21,143.17,20.0]
[1723776672105,31.8743,143.22,143.17,20.0]
[1723776672412,31.8743,143.22,143.19,20.0]
[1723776673104,31.8743,143.22,143.2,0.12549]
[1723776674208,12.8599,143.23,143.21,20.0]
[1723776675442,30.0823,143.25,143.21,20.0]
[1723776675605,30.0823,143.25,143.2,0.25098]
[1723776675922,30.0823,143.25,143.21,20.0]
[1723776676116,30.0823,143.25,143.22,0.12549]
[1723776677227,30.0823,143.25,143.22,20.12549]
[1723776678440,30.0823,143.25,143.21,0.12549]
[1723776679012,30.0823,143.25,143.22,20.0]
[1723776679637,30.0823,143.25,143.23,0.25098]
[1723776680041,30.0823,143.25,143.23,0.12549]
[1723776680245,30.0823,143.25,143.19,45.0]
[1723776680444,30.0823,143.25,143.2,0.12549]
[1723776680743,30.0823,143.25,143.2,0.25098]
[1723776680919,30.0823,143.25,143.2,20.25098]
[1723776681339,30.0823,143.25,143.2,0.25098]
[1723776681724,30.0823,143.25,143.2,20.25098]
[1723776681944,30.0823,143.25,143.2,0.25098]
[1723776682125,30.0823,143.25,143.21,20.0]
[1723776682320,30.0823,143.25,143.2,0.25098]
[1723776683426,30.0823,143.25,143.2,20.25098]
[1723776683948,30.0823,143.25,143.2,0.25098]
[1723776684450,30.0823,143.25,143.2,20.25098]
[1723776685419,30.0823,143.25,143.2,0.12549]
[1723776685628,0.25098,143.24,143.14,40.0]
[1723776685925,1.99674658,143.24,143.14,40.0]
[1723776686261,1.99674658,143.24,143.11,40.0]
[1723776686262,0.12549,143.2,143.11,40.0]
[1723776686439,0.12549,143.2,143.09,46.46592658]
[1723776686739,0.25098,143.2,143.1,20.0]
[1723776687116,0.25098,143.2,143.13,20.0]
[1723776687524,7.23418,143.2,143.12,20.0]
[1723776687732,7.23418,143.2,143.14,20.0]
[1723776687939,0.25098,143.2,143.14,20.0]
[1723776688112,0.25098,143.2,143.16,20.0]
[1723776688535,0.25098,143.2,143.15,0.12549]
[1723776688774,0.25098,143.2,143.15,0.25098]
[1723776689122,0.25098,143.2,143.16,20.0]
[1723776689530,0.25098,143.2,143.15,0.25098]
[1723776690834,0.25098,143.2,143.15,20.25098]
[1723776691033,1.99700974,143.2,143.11,20.0]
[1723776691250,0.25098,143.2,143.14,20.0]
[1723776691458,0.25098,143.2,143.12,65.0]
[1723776691638,1.99732302,143.2,143.12,45.0]
[1723776692754,1.99732302,143.2,143.13,0.12549]
[1723776692969,1.99732302,143.2,143.13,0.25098]
[1723776693150,0.25098,143.2,143.14,20.0]
[1723776693335,0.25098,143.2,143.13,0.25098]
[1723776694063,0.25098,143.2,143.13,20.25098]
[1723776694246,0.25098,143.2,143.14,20.0]
[1723776695127,0.25098,143.2,143.13,0.25098]
[1723776696456,0.25098,143.2,143.13,20.25098]
[1723776696671,0.25098,143.2,143.13,0.25098]
[1723776697364,7.23418,143.2,143.13,0.25098]
[1723776697534,0.25098,143.2,143.14,20.0]
[1723776699264,0.25098,143.2,143.13,0.25098]
[1723776699448,0.25098,143.2,143.13,20.25098]
[1723776700756,0.25098,143.2,143.16,20.0]
[1723776700964,32.6531,143.21,143.16,20.0]
[1723776701126,32.6531,143.21,143.17,0.12549]
[1723776703363,0.12549,143.2,143.11,20.0]
[1723776703554,0.25098,143.2,143.12,20.0]
[1723776703764,0.25098,143.2,143.14,20.0]
[1723776704078,0.12549,143.2,143.14,20.0]
[1723776704360,32.6531,143.21,143.16,20.0]
[1723776704766,32.6531,143.21,143.17,0.12549]
[1723776705769,32.6531,143.21,143.17,0.25098]
[1723776706664,32.6531,143.21,143.12,20.0]
[1723776706864,1.74611681,143.2,143.13,45.12549]
[1723776707068,1.74611681,143.2,143.14,0.12549]
[1723776707371,0.25098,143.19,143.14,0.12549]
[1723776708699,0.12549,143.19,143.14,0.12549]
[1723776708891,0.12549,143.2,143.14,0.12549]
[1723776708892,1.99720227,143.2,143.14,0.12549]
[1723776709094,1.99720227,143.2,143.13,0.25098]
[1723776709276,1.99720227,143.2,143.12,45.25098]
[1723776709965,0.25098,143.2,143.13,20.0]
[1723776710167,0.25098,143.2,143.14,0.12549]
[1723776710370,0.25098,143.2,143.15,20.0]
[1723776710569,0.25098,143.2,143.14,0.25098]
[1723776710969,1.99718633,143.2,143.13,0.25098]
[1723776711599,19.7649,143.19,143.11,20.0]
[1723776711908,1.99750567,143.18,143.09,20.0]
[1723776712090,0.25098,143.18,143.09,20.0]
[1723776712401,0.12549,143.16,143.07,46.28]
[1723776712618,0.25098,143.16,143.07,46.28]
[1723776712988,0.25098,143.16,143.07,20.0]
[1723776713190,0.25098,143.16,143.08,0.25098]
[1723776713505,0.25098,143.16,143.08,45.25098]
[1723776714018,0.12549,143.16,143.11,20.0]
[1723776714199,0.25098,143.16,143.08,26.28]
[1723776714409,0.25098,143.16,143.1,20.0]
[1723776714611,0.25098,143.16,143.11,0.12549]
[1723776715122,0.25098,143.16,143.07,20.0]
[1723776715325,0.12549,143.14,143.05,40.0]
[1723776715626,1.9979181,143.14,143.06,20.0]
[1723776715811,0.25098,143.14,143.06,20.0]
[1723776716923,0.12549,143.12,143.03,40.0]
[1723776717102,0.25098,143.12,143.07,20.0]
[1723776717499,0.25098,143.12,143.04,20.0]
[1723776717714,1.99812528,143.12,143.04,20.0]
[1723776718093,1.99812528,143.12,143.05,0.12549]
[1723776718328,1.99812528,143.12,143.05,45.25098]
[1723776718505,0.25098,143.12,143.06,20.0]
[1723776718855,0.25098,143.12,143.07,20.12549]
[1723776719793,1.99812823,143.12,143.07,0.12549]
[1723776719996,1.99812823,143.12,143.06,0.25098]
[1723776720221,0.25098,143.12,143.07,20.0]
[1723776720421,0.25098,143.12,143.06,0.12549]
[1723776720725,0.12549,143.08,143.01,20.0]
[1723776720914,1.87312683,143.08,143.01,20.0]
[1723776721221,0.12549,143.07,142.99,40.0]
[1723776721429,12.1129,143.06,142.97,40.0]
[1723776721841,0.12549,143.05,142.97,40.0]
[1723776722341,0.25098,143.05,142.98,20.0]
[1723776722712,0.25098,143.05,142.96,46.28]
[1723776723032,0.12549,143.03,142.96,20.0]
[1723776723212,0.25098,143.03,142.96,20.0]
[1723776724148,0.25098,143.03,142.98,20.0]
[1723776724524,0.25098,143.03,142.96,20.0]
[1723776725943,0.12549,143.01,142.93,28.09656655]
[1723776726119,0.25098,143.01,142.93,20.8577618]
[1723776726455,0.25098,143.01,142.93,0.8577618]
[1723776726620,1.99956608,143.01,142.93,0.8577618]
[1723776727322,1.99956608,143.01,142.93,20.8577618]
[1723776727635,33.1112,143.0,142.94,0.25098]
[1723776727952,0.25098,142.99,142.93,20.8577618]
[1723776729127,0.25098,142.99,142.94,0.12549]
[1723776729335,1.99958352,142.99,142.93,0.8577618]
[1723776730731,0.25098,142.99,142.93,0.8577618]
[1723776731140,1.74875876,142.98,142.93,0.8577618]
[1723776731327,2.00001426,142.97,142.93,0.8577618]
[1723776731530,28.28001426,142.97,142.93,0.8577618]
[1723776731831,0.12549,142.95,142.88,20.0]
[1723776732242,0.25098,142.95,142.88,20.0]
[1723776732463,0.25098,142.95,142.9,20.0]
[1723776732829,2.00026251,142.95,142.86,20.0]
[1723776733339,0.25098,142.95,142.86,20.0]
[1723776733525,0.25098,142.95,142.88,20.0]
[1723776733722,2.00028076,142.95,142.88,20.0]
[1723776734230,0.25098,142.95,142.88,20.0]
[1723776734439,2.00038674,142.95,142.86,20.0]
[1723776735252,2.00038674,142.95,142.88,20.0]
[1723776735450,2.00038674,142.95,142.87,0.12549]
[1723776736031,1.74948131,142.94,142.87,0.12549]
[1723776736254,0.25098,142.93,142.86,0.12549]
[1723776736459,43.073,142.9,142.82,66.28]
[1723776736672,2.00089362,142.89,142.82,46.28]
[1723776736828,0.12549,142.89,142.84,20.0]
[1723776737139,0.25098,142.89,142.82,46.28]
[1723776737335,0.12549,142.89,142.85,20.0]
[1723776737534,0.25098,142.89,142.85,20.0]
[1723776739566,0.25098,142.89,142.84,0.12549]
[1723776739865,0.25098,142.89,142.84,0.25098]
[1723776744466,2.00078694,142.89,142.84,0.25098]
[1723776744767,0.25098,142.89,142.84,0.25098]
[1723776744973,2.00092993,142.89,142.84,0.12549]
[1723776746142,2.00092993,142.89,142.81,20.0]
[1723776746343,0.25098,142.89,142.79,20.0]
[1723776747180,0.25098,142.89,142.78,47.1377618]
[1723776747181,0.12549,142.85,142.78,0.8577618]
[1723776747486,1.87609767,142.85,142.78,0.8577618]
[1723776747645,2.00158767,142.85,142.78,0.8577618]
[1723776748879,0.25098,142.85,142.79,20.0]
[1723776749294,2.00157214,142.85,142.78,0.8577618]
[1723776749597,9.00197214,142.85,142.78,0.8577618]
[1723776750667,7.25138,142.85,142.78,0.8577618]
[1723776751097,0.25098,142.85,142.79,20.0]
[1723776751297,0.25098,142.85,142.78,0.8577618]
[1723776751499,0.25098,142.85,142.79,20.0]
[1723776751700,0.25098,142.85,142.78,0.8577618]
[1723776752000,43.606,142.86,142.78,0.8577618]
[1723776752513,43.606,142.86,142.78,20.8577618]
[1723776752803,43.606,142.86,142.79,0.25098]
[1723776753175,0.25098,142.85,142.79,0.12549]
[1723776754473,0.12549,142.83,142.78,0.8577618]
[1723776754693,0.25098,142.83,142.78,0.8577618]
[1723776757395,0.25098,142.83,142.78,1.24931152]
[1723776757602,0.25098,142.83,142.79,0.12549]
[1723776757914,0.25098,142.83,142.78,0.8577618]
[1723776758210,0.25098,142.83,142.79,0.12549]
[1723776758504,45.3381,142.84,142.79,0.25098]
[1723776759179,45.3381,142.84,142.81,20.0]
[1723776759613,12.4577,142.84,142.81,20.0]
[1723776759910,12.4577,142.84,142.8,20.0]
[1723776760202,12.4577,142.84,142.79,0.25098]
[1723776760203,12.4577,142.84,142.82,20.0]
[1723776760375,12.4577,142.84,142.81,0.25098]
[1723776760376,31.0017,142.87,142.84,20.0]
[1723776760576,12.2096,142.88,142.84,20.0]
[1723776760780,31.0017,142.91,142.86,20.0]